bitfinex/quotes_ETHUSD_20251021
["timestamp","ask_amount","ask_price","bid_price","bid_amount"]
[1761063738449,4.67932987,4090.9,4090.8,0.002]
[1761063738860,4.77832987,4090.9,4090.8,0.002]
[1761063740743,4.77832987,4090.9,4089.4,0.4323]
[1761063740744,1.728,4090.8,4089.7,2.016]
[1761063741045,0.50688,4090.7,4089.7,2.016]
[1761063741213,2.44458938,4090.7,4089.7,4.46116079]
[1761063741417,2.44410198,4091.5,4089.7,4.46116079]
[1761063741418,0.1257,4092.2,4090.6,0.2355]
[1761063741656,2.44397951,4091.7,4090.7,2.44456918]
[1761063741816,1.728,4091.7,4090.6,5.89512582]
[1761063742014,2.44403167,4091.6,4090.6,5.89512582]
[1761063742215,2.44329284,4092.9,4090.7,2.46900008]
[1761063742464,2.44385106,4092.0,4090.7,2.44455439]
[1761063742633,0.30422106,4092.5,4090.6,3.4505]
[1761063742835,0.50688,4092.0,4091.0,2.44433157]
[1761063743061,0.50688,4092.0,4090.7,0.4323]
[1761063743062,2.44386838,4091.9,4090.7,0.4323]
[1761063743355,0.30422106,4092.5,4090.6,3.4505]
[1761063743356,0.01834485,4091.8,4090.6,3.6473]
[1761063743523,2.23488,4092.0,4090.8,0.4323]
[1761063743729,1.728,4092.2,4090.9,0.02444449]
[1761063744041,0.50688,4091.8,4090.6,3.215]
[1761063744259,2.44414633,4091.5,4090.7,0.449]
[1761063744461,2.95083742,4091.8,4090.8,2.44450952]
[1761063744765,2.95083742,4091.8,4090.8,5.65950952]
[1761063744766,2.44398616,4091.7,4090.8,5.65950952]
[1761063744970,0.50688,4092.0,4091.0,2.44434839]
[1761063745174,1.728,4091.8,4091.1,0.2315]
[1761063745377,1.728,4091.8,4090.8,3.215]
[1761063745579,0.01834485,4091.7,4090.8,3.215]
[1761063745761,0.25573249,4091.6,4090.9,0.449]
[1761063745941,4.17192508,4091.8,4090.9,0.449]
[1761063746270,2.44412932,4091.5,4090.8,3.215]
[1761063746570,1.728,4092.5,4091.7,0.2315]
[1761063746772,0.099,4093.1,4091.7,3.4465]
[1761063746773,2.4443646,4092.8,4091.7,3.4465]
[1761063746944,2.44349279,4092.6,4091.7,3.4465]
[1761063747148,2.44343449,4092.6,4091.7,3.4465]
[1761063747336,2.44356238,4092.4,4091.7,3.4465]
[1761063747742,2.44353634,4092.5,4091.7,3.4465]
[1761063747949,2.44353634,4092.5,4091.8,0.449]
[1761063747950,0.66159253,4092.5,4091.8,0.449]
[1761063748273,2.4435386,4092.5,4091.7,3.4465]
[1761063748465,2.44355664,4092.4,4091.7,3.4465]
[1761063748766,0.50688,4092.6,4091.7,6.33946853]
[1761063748970,1.728,4092.4,4091.8,0.449]
[1761063749477,0.001,4092.8,4091.8,0.449]
[1761063750050,0.001,4092.8,4091.8,2.89288111]
[1761063750254,0.001,4092.8,4091.9,2.44385248]
[1761063750474,2.44431601,4092.8,4091.9,0.449]
[1761063750657,2.98375365,4092.8,4091.9,0.449]
[1761063750970,2.98375365,4092.8,4091.7,0.2315]
[1761063750971,0.54043379,4092.8,4091.7,0.2315]
[1761063751178,2.44355209,4092.5,4092.0,3.214]
[1761063751546,0.001,4092.8,4092.1,0.449]
[1761063751947,0.001,4092.8,4092.1,2.89273211]
[1761063752277,0.001,4092.8,4092.1,0.449]
[1761063752490,2.68876496,4092.8,4091.7,0.6805]
[1761063752793,2.68876496,4092.8,4091.8,2.89290886]
[1761063752794,2.44337622,4092.7,4091.8,2.89290886]
[1761063752967,2.46178647,4092.6,4091.8,3.663]
[1761063753168,0.01834485,4092.6,4091.8,0.449]
[1761063753394,0.52622485,4092.8,4091.7,0.2315]
[1761063753605,0.50202432,4092.7,4091.7,0.2315]
[1761063753808,0.50202432,4092.7,4091.8,0.774]
[1761063754104,2.44363275,4092.3,4091.8,0.774]
[1761063754672,2.44357289,4092.4,4091.8,1.223]
[1761063755006,0.50202432,4092.7,4091.9,0.449]
[1761063755296,0.001,4092.8,4092.0,2.44374879]
[1761063755497,2.44339287,4092.7,4091.9,2.89284547]
[1761063755861,2.44342753,4092.7,4092.0,3.213]
[1761063756062,0.01934485,4092.8,4092.0,3.213]
[1761063756395,2.44344286,4092.6,4092.1,3.213]
[1761063756763,0.01934485,4092.8,4091.8,0.449]
[1761063756965,0.01934485,4092.8,4091.9,3.213]
[1761063756966,4.17138111,4092.7,4091.9,3.213]
[1761063757396,2.44359796,4092.4,4091.9,3.213]
[1761063758292,2.44359796,4092.4,4091.9,3.662]
[1761063758491,2.44359796,4092.4,4092.0,3.213]
[1761063758693,2.44355517,4092.4,4092.0,3.213]
[1761063758990,0.01834485,4092.3,4092.1,3.213]
[1761063759193,0.01834485,4092.3,4090.4,1.651]
[1761063759194,0.50688,4092.2,4091.5,3.213]
[1761063759495,2.44395319,4091.8,4091.5,3.213]
[1761063759791,0.50688,4092.0,4090.4,2.44474867]
[1761063760029,2.4434905,4092.6,4090.3,0.6845]
[1761063760030,0.50688,4091.8,4090.3,0.6845]
[1761063760194,0.50688,4091.8,4090.7,0.2443]
[1761063760389,2.44421738,4091.3,4090.7,0.2443]
[1761063760586,2.44410617,4091.5,4090.7,0.2443]
[1761063760587,2.44431376,4091.2,4090.7,0.2443]
[1761063761220,0.1216,4091.1,4090.8,3.212]
[1761063761407,2.44442158,4091.0,4090.8,3.212]
[1761063761727,2.44443634,4091.0,4090.9,3.212]
[1761063762037,0.2161,4090.8,4089.4,0.449]
[1761063762188,0.2161,4090.8,4089.2,0.1216]
[1761063762189,2.44505641,4089.9,4089.2,0.1216]
[1761063762521,0.1216,4089.5,4089.1,0.002]
[1761063762714,0.1216,4089.5,4089.2,0.423]
[1761063763421,0.1216,4089.5,4089.3,3.212]
[1761063763808,0.1216,4089.7,4089.4,0.449]
[1761063764122,0.1726,4091.0,4089.4,1.08299149]
[1761063764322,0.1216,4090.6,4090.1,0.2315]
[1761063764621,0.1216,4090.6,4090.2,3.661]
[1761063764822,0.1216,4090.6,4090.2,4.55140262]
[1761063765122,0.1216,4090.6,4090.3,0.449]
[1761063765324,1.8496,4091.1,4090.4,0.1216]
[1761063765489,1.86794485,4091.1,4090.4,0.1216]
[1761063765691,0.1216,4091.1,4090.4,0.1216]
[1761063766088,1.728,4091.5,4090.5,3.212]
[1761063766400,0.1216,4090.8,4090.5,3.212]
[1761063767020,0.50688,4091.6,4090.5,3.212]
[1761063767224,0.1216,4091.1,4090.6,0.449]
[1761063767423,0.001,4092.8,4091.5,0.2315]
[1761063767628,2.54337882,4092.7,4091.2,0.2315]
[1761063767794,2.44362916,4092.3,4091.3,3.212]
[1761063767997,0.66151271,4092.2,4091.4,0.449]
[1761063768196,0.001,4092.8,4091.3,3.212]
[1761063768391,0.001,4092.8,4091.2,0.2315]
[1761063768392,1.728,4092.4,4091.2,0.2315]
[1761063768626,2.44360048,4092.4,4091.4,5.65614768]
[1761063768923,2.44363729,4092.3,4091.4,3.212]
[1761063769239,2.44368989,4092.2,4091.4,3.212]
[1761063769401,2.44368989,4092.2,4091.2,3.12475756]
[1761063769602,2.44368989,4092.2,4091.3,3.212]
[1761063770026,3.10513363,4092.3,4091.3,5.65620257]
[1761063770327,0.66150798,4092.3,4091.5,2.44408398]
[1761063770537,0.66150798,4092.3,4091.3,3.661]
[1761063770538,1.728,4092.5,4091.4,2.44414164]
[1761063770836,2.44369093,4092.2,4091.3,3.661]
[1761063771131,2.23488,4092.5,4091.4,3.212]
[1761063771305,1.728,4092.6,4091.7,2.44392011]
[1761063771649,1.728,4092.6,4091.6,2.44397518]
[1761063771650,0.1729,4092.5,4091.6,2.44397518]
[1761063771805,0.1729,4092.5,4091.5,0.449]
[1761063772132,2.44349419,4092.5,4091.5,0.449]
[1761063772341,2.44358199,4092.4,4091.5,2.89308559]
[1761063772704,2.4435143,4092.5,4091.6,2.44401854]
[1761063773043,2.4435143,4092.5,4091.6,2.4440232]
[1761063773044,2.44351014,4092.5,4091.6,2.4440232]
[1761063773245,2.14515101,4092.4,4091.6,2.4440232]
[1761063773400,4.58870847,4092.4,4091.5,2.89307933]
[1761063773596,1.728,4092.3,4091.5,2.44407933]
[1761063773837,4.1716341,4092.3,4091.4,3.212]
[1761063774140,2.86071213,4092.4,4091.5,2.44404816]
[1761063774299,0.28607121,4092.3,4091.6,0.2443]
[1761063774636,2.72968689,4092.3,4091.6,0.2443]
[1761063774840,2.44368054,4092.2,4091.6,0.2443]
[1761063775035,0.28607121,4092.3,4091.6,0.2443]
[1761063775522,2.44367849,4092.2,4091.7,0.2443]
[1761063775729,0.27297497,4092.1,4091.7,0.2443]
[1761063776234,0.001,4092.6,4091.9,0.2443]
[1761063776427,0.001,4092.6,4092.0,3.211]
[1761063776833,0.001,4092.6,4092.1,0.70023733]
[1761063777008,0.001,4092.6,4092.5,2.44349419]
[1761063777413,0.001,4092.6,4092.5,2.88369419]
[1761063778132,0.001,4092.6,4092.5,3.12799419]
[1761063778635,0.001,4092.6,4092.5,6.33799419]
[1761063779729,0.001,4092.6,4092.5,2.68779419]
[1761063779935,0.001,4092.6,4092.5,5.89779419]
[1761063780432,0.001,4092.6,4092.5,2.68779419]
[1761063780620,0.001,4092.6,4092.5,5.89779419]
[1761063782429,0.001,4092.6,4092.5,14.81164769]
[1761063782644,0.001,4092.8,4092.7,4.41567478]
[1761063782850,0.001,4093.1,4093.0,4.41549569]
[1761063783051,0.001,4093.1,4093.0,29.89850095]
[1761063783358,0.001,4093.1,4093.0,32.90430389]
[1761063784933,0.001,4093.1,4093.0,39.42881189]
[1761063785476,0.001,4093.1,4093.0,38.85028389]
[1761063785764,0.001,4093.1,4093.0,37.76222689]
[1761063788755,0.001,4093.1,4093.0,10.28783058]
[1761063788955,0.001,4093.1,4093.0,7.81939569]
[1761063789327,0.001,4093.1,4093.0,26.79959669]
[1761063789538,0.001,4093.1,4093.0,24.76591069]
[1761063789754,0.001,4093.1,4093.0,25.01021069]
[1761063790485,0.1885,4095.1,4093.4,34.41525695]
[1761063790786,0.2049,4095.9,4094.5,0.2443]
[1761063790987,0.2049,4095.9,4094.6,3.36229122]
[1761063791152,0.12794485,4095.8,4094.6,3.207]
[1761063791353,0.2126,4094.7,4093.7,0.2356]
[1761063791655,2.44234529,4094.5,4093.8,3.207]
[1761063791863,0.27645453,4094.4,4093.9,3.207]
[1761063792175,2.55188917,4094.6,4093.3,0.4402]
[1761063792176,0.1096,4094.6,4093.3,0.4402]
[1761063792378,0.1096,4094.5,4093.5,2.44289591]
[1761063792684,2.44246349,4094.3,4093.6,3.207]
[1761063792885,0.40439358,4094.5,4093.7,3.207]
[1761063793188,2.44249312,4094.2,4093.7,3.207]
[1761063793560,0.1096,4094.4,4093.2,1.9636]
[1761063793561,0.1096,4094.1,4093.2,1.9636]
[1761063793755,0.2126,4094.7,4093.3,3.207]
[1761063793756,0.001,4094.0,4093.3,3.207]
[1761063794382,2.44249178,4094.2,4093.3,3.207]
[1761063794685,2.94193464,4094.2,4093.3,3.207]
[1761063794860,2.44259892,4094.0,4093.3,3.207]
[1761063795058,0.1896,4093.9,4093.2,0.2356]
[1761063795259,0.1896,4093.9,4093.3,3.206]
[1761063795460,2.44245192,4094.3,4093.3,3.206]
[1761063795660,0.1216,4094.0,4093.4,2.44291425]
[1761063795888,2.56421272,4094.0,4093.3,3.3276]
[1761063796285,0.1888,4093.9,4093.3,3.3276]
[1761063796886,0.1216,4094.0,4093.3,0.1216]
[1761063797087,1.9406,4094.7,4093.4,3.67062956]
[1761063797265,0.1216,4094.4,4093.7,0.1216]
[1761063797784,0.12954485,4094.3,4093.7,0.1216]
[1761063797983,0.12954485,4094.3,4093.2,22.48517331]
[1761063797984,0.1216,4094.2,4093.8,3.206]
[1761063798321,0.1216,4094.2,4093.9,3.206]
[1761063799218,0.1216,4094.5,4093.9,3.206]
[1761063799404,0.3342,4094.7,4094.0,0.5841]
[1761063799582,0.2338,4094.7,4094.0,0.1216]
[1761063799912,0.2116,4094.9,4093.2,0.2356]
[1761063799913,0.1122,4094.6,4093.2,0.2356]
[1761063800112,0.1122,4094.6,4093.3,5.6490078]
[1761063800281,0.50688,4094.4,4093.2,0.2356]
[1761063800486,2.44253332,4094.2,4093.4,3.206]
[1761063800816,0.2116,4094.9,4093.5,0.02442897]
[1761063801018,0.2116,4094.9,4093.5,0.48692897]
[1761063801220,0.50688,4094.6,4092.5,0.8463005]
[1761063801518,0.50688,4094.6,4093.0,1.728]
[1761063801718,2.44271744,4093.9,4093.0,4.17118765]
[1761063802024,2.44271744,4093.9,4093.1,3.205]
[1761063802315,2.44267884,4093.9,4093.1,3.205]
[1761063802494,0.2991,4094.0,4093.2,0.2145]
[1761063802700,2.74171433,4094.0,4093.3,3.205]
[1761063802907,0.2991,4094.0,4093.3,3.205]
[1761063803111,2.74171499,4094.0,4093.3,3.205]
[1761063803421,0.099,4094.5,4093.4,2.44295695]
[1761063803626,2.44254722,4094.1,4093.3,5.64800129]
[1761063803790,2.4425787,4094.1,4093.3,5.64800567]
[1761063803990,0.099,4094.5,4093.3,3.205]
[1761063804320,0.099,4094.6,4093.5,0.2443]
[1761063804510,2.44242353,4094.3,4093.5,2.68715462]
[1761063805126,2.44242353,4094.3,4093.7,0.2443]
[1761063805429,2.54142353,4094.3,4093.7,0.2443]
[1761063805611,0.099,4094.3,4093.7,0.2443]
[1761063806010,0.099,4094.3,4093.7,2.68705851]
[1761063806420,2.44228306,4094.6,4093.9,0.2443]
[1761063806607,0.47761631,4094.5,4093.9,2.68694713]
[1761063806917,0.2116,4094.9,4094.1,0.2443]
[1761063807229,0.2116,4094.9,4094.2,3.205]
[1761063807419,2.54112948,4094.8,4094.2,3.205]
[1761063807732,2.44236029,4094.4,4094.3,3.204]
[1761063808228,2.54136029,4094.4,4094.3,3.204]
[1761063808534,0.50688,4094.1,4092.8,0.002]
[1761063808697,2.94970039,4093.7,4092.8,0.002]
[1761063809036,2.44319569,4093.0,4092.9,3.204]
[1761063809199,2.90149569,4093.0,4092.9,3.204]
[1761063809404,2.44308223,4093.2,4092.9,3.204]
[1761063809599,0.1951,4093.3,4092.8,0.002]
[1761063809824,2.542136,4093.1,4093.0,3.204]
[1761063810232,0.1216,4093.0,4092.8,0.002]
[1761063810501,0.1216,4093.1,4092.9,3.204]
[1761063811121,0.1216,4093.1,4092.9,3.206]
[1761063811939,2.56154054,4093.0,4092.9,0.002]
[1761063812112,0.37990304,4093.1,4092.9,1.569]
[1761063812316,0.1216,4093.1,4092.9,1.569]
[1761063812725,2.56154054,4093.0,4092.9,0.002]
[1761063812931,2.56154054,4093.0,4092.9,3.206]
[1761063812932,2.54319569,4093.0,4092.9,3.206]
[1761063813454,0.1216,4093.1,4092.9,3.206]
[1761063814318,0.1942,4093.6,4092.9,3.206]
[1761063814532,0.1216,4093.1,4092.9,3.206]
[1761063814725,0.1942,4093.6,4093.0,2.44319569]
[1761063814936,0.1942,4093.6,4092.9,3.5268]
[1761063814937,0.1216,4093.5,4092.9,3.5268]
[1761063815244,0.1216,4093.5,4093.0,2.44318454]
[1761063815451,0.1216,4093.5,4092.9,5.97003581]
[1761063815949,0.1216,4093.5,4093.0,0.85369963]
[1761063816257,0.1216,4093.8,4093.2,0.1216]
[1761063816418,0.1216,4093.8,4093.3,3.204]
[1761063816624,0.1216,4093.8,4093.2,0.1216]
[1761063816924,0.001,4094.6,4093.3,3.204]
[1761063817133,0.1216,4094.2,4093.6,0.1216]
[1761063817316,0.099,4094.5,4093.7,3.203]
[1761063817516,0.1216,4093.8,4093.1,0.1216]
[1761063817749,0.1216,4093.8,4093.2,3.6387]
[1761063817957,0.1216,4093.8,4093.4,2.44291299]
[1761063818318,0.1216,4093.8,4093.5,2.44288919]
[1761063818518,0.1216,4093.8,4093.5,2.44289727]
[1761063818742,0.1216,4093.8,4093.6,0.4357]
[1761063819041,0.1216,4093.8,4093.7,5.64577792]
[1761063819241,0.1216,4094.0,4093.8,0.2443]
[1761063819462,0.1216,4094.3,4093.8,0.2443]
[1761063819813,2.44234528,4094.5,4093.8,0.2443]
[1761063820126,2.44243639,4094.3,4093.8,0.2443]
[1761063820647,2.44288685,4093.6,4092.9,0.002]
[1761063820850,0.50688,4094.4,4093.1,2.443136]
[1761063821026,0.66135297,4094.5,4093.6,2.44279581]
[1761063821027,0.099,4094.5,4093.6,2.44279581]
[1761063821352,0.099,4094.5,4093.7,3.203]
[1761063821353,2.4423804,4094.4,4093.7,3.203]
[1761063821544,0.099,4094.5,4094.0,2.4425469]
[1761063821745,0.001,4094.6,4093.7,2.44272354]
[1761063822044,0.001,4094.6,4093.9,0.2443]
[1761063822417,2.44236672,4094.4,4094.0,3.203]
[1761063822614,2.54136672,4094.4,4094.0,3.203]
[1761063823049,2.4423195,4094.5,4094.0,3.203]
[1761063823221,0.001,4094.6,4094.0,3.203]
[1761063823427,2.44324601,4094.6,4094.0,3.203]
[1761063823623,2.44230249,4094.5,4094.0,3.203]
[1761063823950,0.78859359,4094.5,4093.9,0.2443]
[1761063824154,0.001,4094.6,4094.0,3.202]
[1761063824155,2.44249617,4094.2,4094.0,3.202]
[1761063824353,0.50688,4094.3,4092.9,0.002]
[1761063824649,0.50688,4094.3,4093.1,2.443136]
[1761063824650,0.099,4094.3,4093.1,2.443136]
[1761063824851,2.44253119,4094.2,4093.2,0.56715686]
[1761063825022,0.001,4094.6,4093.3,0.02443016]
[1761063825220,2.44243161,4094.3,4093.5,2.44289727]
[1761063825448,0.099,4094.5,4093.6,3.202]
[1761063825655,2.44237269,4094.4,4093.6,3.202]
[1761063825950,0.099,4094.5,4093.7,2.44275189]
[1761063826139,2.44236288,4094.4,4093.7,2.44275189]
[1761063826342,2.44243425,4094.3,4093.6,3.202]
[1761063826656,0.099,4094.4,4093.6,5.6448363]
[1761063826955,2.44242346,4094.3,4093.6,3.202]
[1761063827331,2.44234938,4094.5,4093.6,3.202]
[1761063827536,0.001,4094.6,4093.8,2.44267686]
[1761063827740,2.44326736,4094.6,4093.9,2.44265317]
[1761063828266,2.44326736,4094.6,4093.7,0.4357]
[1761063828267,2.44231038,4094.5,4093.8,2.44270574]
[1761063828432,2.44231038,4094.5,4093.7,2.87847047]
[1761063828832,0.001,4094.6,4093.7,0.4357]
[1761063829061,0.099,4094.5,4093.8,3.202]
[1761063829432,0.197,4093.9,4093.0,0.2443]
[1761063829633,0.197,4093.9,4092.9,0.002]
[1761063829634,2.44255544,4094.1,4093.1,3.1504]
[1761063829832,0.1216,4093.9,4093.2,0.87254]
[1761063830030,0.1216,4093.9,4093.2,0.89697076]
[1761063830280,0.1216,4094.1,4093.4,0.1216]
[1761063830430,0.1216,4094.1,4093.5,2.44284504]
[1761063830638,0.1216,4094.1,4093.6,5.6438376]
[1761063830837,0.1216,4094.1,4093.6,5.8881376]
[1761063831036,0.1216,4094.1,4093.7,2.8784739]
[1761063831269,0.1216,4094.1,4093.8,2.44270912]
[1761063831448,0.1216,4094.1,4093.8,2.87840912]
[1761063831965,0.1216,4094.1,4093.7,2.44276829]
[1761063832166,0.1216,4094.1,4093.7,2.87846829]
[1761063833442,0.1216,4094.1,4093.6,5.88812177]
[1761063834178,0.1216,4094.1,4093.6,5.64382177]
[1761063834379,0.1216,4094.1,4093.7,0.454]
[1761063834680,0.2206,4094.1,4093.6,3.201]
[1761063835088,0.1216,4094.1,4093.6,3.201]
[1761063835303,0.1216,4094.1,4093.6,5.64383521]
[1761063836469,0.1216,4094.1,4093.4,0.76839051]
[1761063836764,0.1216,4094.1,4093.5,3.201]
[1761063836969,2.56419058,4094.1,4093.5,3.201]
[1761063838079,0.197,4093.6,4093.5,3.201]
[1761063838577,0.197,4093.6,4093.5,3.2]
[1761063840378,2.44250036,4094.2,4093.1,0.002]
[1761063840379,0.21434485,4093.9,4093.1,0.002]
[1761063840719,4.67795632,4093.2,4093.1,0.001]
[1761063840922,4.69630117,4093.2,4093.1,0.001]
[1761063841127,0.50688,4093.7,4093.1,1.694]
[1761063841430,0.1,4093.7,4093.1,1.694]
[1761063841596,2.56118871,4093.6,4093.1,1.694]
[1761063841800,2.4428909,4093.6,4093.1,1.694]
[1761063842127,0.50688,4093.8,4093.1,4.13711915]
[1761063842433,2.94960198,4093.8,4093.1,4.36031915]
[1761063842675,2.94960198,4093.8,4093.1,1.9172]
[1761063842923,2.44232224,4094.5,4093.1,1.9172]
[1761063842924,2.44256034,4094.1,4093.3,2.44298397]
[1761063843096,0.01834485,4094.0,4093.4,3.2]
[1761063843416,2.44273055,4093.8,4093.1,0.001]
[1761063843616,0.24433222,4094.4,4093.1,0.001]
[1761063843617,0.197,4093.2,4093.1,0.001]
[1761063843806,0.50688,4093.8,4093.1,3.201]
[1761063844012,0.099,4094.5,4093.2,0.2232]
[1761063844317,0.001,4094.6,4093.3,3.2]
[1761063844318,0.294,4094.2,4093.3,3.2]
[1761063844532,0.294,4094.2,4093.4,2.44295519]
[1761063844533,2.44254555,4094.1,4093.4,2.44295519]
[1761063844734,2.44254555,4094.1,4093.1,0.001]
[1761063844735,0.01834485,4094.0,4093.1,0.001]
[1761063844888,0.294,4094.0,4093.2,3.2]
[1761063845087,0.001,4094.6,4093.2,3.654]
[1761063845324,0.001,4094.6,4093.6,22.04060124]
[1761063845509,0.001,4094.6,4094.5,2.44230064]
[1761063845689,0.001,4094.6,4094.5,6.34392364]
[1761063846019,0.001,4094.6,4094.5,7.19813108]
[1761063846791,0.001,4094.6,4094.5,7.44243108]
[1761063847191,0.001,4094.6,4094.5,4.24243108]
[1761063847387,0.001,4094.6,4094.5,2.90980064]
[1761063848124,0.001,4094.6,4094.5,3.199]
[1761063848489,0.001,4094.6,4094.2,0.2443]
[1761063849007,0.001,4094.6,4094.5,2.44230064]
[1761063849386,0.001,4094.6,4094.5,6.09530064]
[1761063850030,0.001,4094.6,4094.5,6.94907216]
[1761063850523,0.001,4094.6,4094.5,7.07067216]
[1761063850695,0.001,4094.6,4094.5,5.76290064]
[1761063851697,0.001,4094.6,4094.5,2.56390064]
[1761063851908,0.001,4094.6,4094.5,5.76290064]
[1761063852434,0.001,4094.6,4094.5,6.21690064]
[1761063852731,0.001,4094.6,4094.5,6.46120064]
[1761063852925,0.001,4094.6,4094.5,8.47563553]
[1761063854434,0.001,4094.6,4093.7,0.2232]
[1761063854616,0.001,4094.6,4093.7,0.6772]
[1761063854801,0.001,4094.6,4094.1,2.44248994]
[1761063855125,2.44212436,4094.8,4094.0,2.4425824]
[1761063855326,2.44212436,4094.8,4094.1,5.64052603]
[1761063855503,2.44207536,4094.9,4094.1,5.64052603]
[1761063855704,0.50688,4095.3,4094.2,2.4424796]
[1761063856028,0.50688,4095.3,4094.1,4.00631819]
[1761063856029,0.50688,4095.3,4094.3,2.44241121]
[1761063856224,2.44194236,4095.2,4094.1,6.44885262]
[1761063856433,2.44196331,4095.1,4094.1,6.44885262]
[1761063856633,2.44188783,4095.2,4094.4,2.44230688]
[1761063856797,2.44188783,4095.2,4094.5,5.64029295]
[1761063857199,2.44305659,4095.1,4094.6,3.198]
[1761063857601,0.0011,4095.0,4094.6,3.198]
[1761063858206,2.44193106,4095.2,4094.6,3.198]
[1761063858610,2.4418399,4095.3,4094.6,3.198]
[1761063858811,2.44190948,4095.2,4094.6,3.198]
[1761063859113,4.17086798,4095.4,4094.6,3.198]
[1761063859114,0.0011,4095.4,4094.6,3.198]
[1761063859332,0.50688,4095.3,4094.6,3.198]
[1761063859530,2.44188973,4095.2,4094.6,3.198]
[1761063859732,2.44194326,4095.1,4094.6,3.198]
[1761063860226,2.44189436,4095.2,4094.6,3.198]
[1761063860841,2.44194831,4095.1,4094.6,3.198]
[1761063861139,2.44188318,4095.2,4094.6,3.198]
[1761063861308,2.44188318,4095.2,4094.7,3.197]
[1761063861309,2.44212465,4094.8,4094.7,3.197]
[1761063861714,2.44322465,4094.8,4094.7,3.197]
[1761063862119,0.50798,4094.8,4093.6,0.2344]
[1761063862322,0.50798,4094.8,4093.4,0.4468]
[1761063862323,0.0011,4094.7,4093.7,3.197]
[1761063862546,2.44231783,4094.5,4093.8,2.4427165]
[1761063862715,2.44231783,4094.5,4093.7,6.00413814]
[1761063863240,2.44231783,4094.5,4093.8,2.44270039]
[1761063863823,2.44241041,4094.4,4093.4,2.44294716]
[1761063864029,0.24424104,4094.3,4093.5,3.197]
[1761063864218,0.1961,4094.3,4092.8,0.4726]
[1761063864419,0.1961,4094.3,4093.3,2.44296266]
[1761063864420,0.1216,4093.8,4093.3,2.44296266]
[1761063864716,0.1216,4093.8,4093.1,2.78893153]
[1761063864717,0.1216,4093.8,4093.1,0.1226]
[1761063865042,2.44222506,4094.7,4093.1,0.1226]
[1761063865043,0.2197,4093.2,4093.1,0.001]
[1761063865257,0.1216,4093.2,4093.1,3.198]
[1761063865457,0.1216,4093.4,4093.3,2.44301663]
[1761063865649,0.1216,4093.4,4093.2,0.2305]
[1761063865650,0.1216,4093.8,4093.2,2.67357453]
[1761063865828,0.1216,4093.8,4093.5,2.44288919]
[1761063866023,0.1216,4093.8,4093.6,3.22142837]
[1761063866257,0.1971,4094.6,4094.2,0.002]
[1761063866473,0.0981,4094.6,4094.3,3.197]
[1761063866640,2.44236029,4094.4,4094.3,3.197]
[1761063867027,2.44241994,4094.3,4094.2,0.002]
[1761063867259,0.1216,4094.5,4094.2,0.002]
[1761063868325,0.1216,4094.5,4094.2,2.76437924]
[1761063868530,0.1216,4094.5,4094.2,0.002]
[1761063869428,0.1216,4094.5,4094.3,3.197]
[1761063871561,0.001,4095.1,4094.7,2.44217016]
[1761063871861,0.001,4095.1,4094.8,3.196]
[1761063872040,0.001,4095.1,4095.0,2.44200244]
[1761063872239,0.001,4095.1,4094.3,0.4706]
[1761063872562,0.001,4095.1,4094.7,2.44217406]
[1761063872785,0.001,4095.1,4094.8,3.196]
[1761063873194,0.001,4095.1,4094.9,3.196]
[1761063873395,0.001,4095.1,4094.3,0.4706]
[1761063873604,0.001,4095.1,4094.8,2.44211316]
[1761063873802,0.001,4095.1,4094.9,3.196]
[1761063874561,0.001,4095.1,4094.9,5.63801596]
[1761063874760,0.001,4095.1,4094.2,0.002]
[1761063874977,0.001,4095.1,4094.3,3.196]
[1761063875362,2.44295703,4095.1,4094.4,2.44235566]
[1761063876159,0.001,4095.1,4094.3,3.196]
[1761063876364,0.001,4095.1,4094.7,2.44214311]
[1761063876674,0.001,4095.1,4094.8,3.196]
[1761063876858,2.63905516,4095.1,4094.9,3.196]
[1761063877057,0.1971,4095.1,4094.2,0.002]
[1761063877260,2.44296279,4095.1,4094.3,3.196]
[1761063877505,0.25519628,4095.1,4094.3,3.196]
[1761063877699,2.44202313,4095.0,4094.3,2.44241002]
[1761063877862,2.44202313,4095.0,4094.4,3.196]
[1761063878285,2.54017278,4094.9,4094.4,3.196]
[1761063878483,0.0981,4094.9,4094.4,3.196]
[1761063879004,0.001,4095.1,4094.5,0.4706]
[1761063879296,2.44295675,4095.1,4094.5,3.6666]
[1761063879469,2.44295675,4095.1,4094.5,3.196]
[1761063880197,3.10422948,4095.1,4094.5,3.196]
[1761063880415,2.44207922,4094.9,4094.6,3.195]
[1761063880714,3.10423416,4095.1,4094.4,2.44235568]
[1761063880882,3.10423416,4095.1,4094.5,3.195]
[1761063881081,2.39027273,4095.1,4094.5,5.63725887]
[1761063881281,0.001,4095.1,4094.6,2.44219342]
[1761063881588,0.1216,4094.8,4094.5,5.63728216]
[1761063881787,0.1216,4094.8,4094.5,3.195]
[1761063882206,0.1216,4094.8,4094.5,5.63727819]
[1761063882399,0.1216,4094.8,4094.5,3.195]
[1761063882578,0.1216,4094.8,4094.2,0.002]
[1761063882782,0.1216,4094.8,4094.3,3.195]
[1761063883016,0.1216,4094.8,4094.2,2.44447789]
[1761063883017,2.44212171,4094.8,4094.4,3.195]
[1761063883206,0.1216,4094.5,4094.4,3.195]
[1761063885100,0.1216,4094.5,4094.4,3.197]
[1761063885915,0.001,4095.1,4094.4,5.63936029]
[1761063886218,2.44216766,4094.8,4094.5,3.195]